fUST/lending_fUST_20250930
["ID","MTS","AMOUNT","RATE_DAILY","PERIOD"]
[388503642,1759221193536,500.0,0.00019113,2]
[388503643,1759221193887,500.0,0.00019113,2]
[388503644,1759221194048,500.0,0.00019113,2]
[388503645,1759221194210,500.0,0.00019113,2]
[388503646,1759221194428,500.0,0.00019113,2]
[388503647,1759221194901,500.0,0.00019113,2]
[388503648,1759221195087,500.0,0.00019113,2]
[388503649,1759221195413,500.0,0.00019113,2]
[388503650,1759221195762,500.0,0.00019113,2]
[388503651,1759221196119,430.71075537,0.00019113,2]
[388503652,1759221220801,10000.01,0.00019014,2]
[388503653,1759221220823,10000.01,0.00019014,2]
[388503654,1759221220845,10000.01,0.00019014,2]
[388503655,1759221220868,10000.01,0.00019014,2]
[388503656,1759221220891,10000.01,0.00019014,2]
[388503657,1759221220913,10000.01,0.00019014,2]
[388503658,1759221220934,10000.01,0.00019014,2]
[388503659,1759221220955,10000.01,0.00019014,2]
[388503660,1759221220974,10000.01,0.00019014,2]
[388503661,1759221220995,10000.01,0.00019014,2]
[388503662,1759221221022,269999.9,0.00019014,2]
[388503663,1759221254602,-500.0,0.00019178,2]
[388503664,1759221254629,-1723.83,0.00019178,2]
[388503665,1759221254656,-500.0,0.00019178,2]
[388503666,1759221254685,-1978.4,0.00019178,2]
[388503667,1759221254948,-595.55,0.00019178,2]
[388503668,1759221261754,500.0,0.00019178,2]
[388503669,1759221279185,500.0,0.00019178,2]
[388503670,1759221287764,480.0,0.00019178,2]
[388503671,1759221290214,480.0,0.00019178,2]
[388503672,1759221290486,637.26,0.00019178,2]
[388503673,1759221295752,500.0,0.00019178,2]
[388503674,1759221303132,4212.72652886,0.00033162,120]
[388503675,1759221303168,9410.41640325,0.00033162,120]
[388503676,1759221308820,3000.0,0.00033162,120]
[388503677,1759221310352,480.0,0.00019178,2]
[388503678,1759221312188,480.0,0.00019178,2]
[388503679,1759221313730,347.321377,0.00019178,2]
[388503680,1759221315463,624.2,0.00019178,2]
[388503681,1759221322125,480.0,0.00019178,2]
[388503682,1759221324277,480.0,0.00019178,2]
[388503683,1759221326547,2820.128623,0.00019178,2]
[388503684,1759221326569,98.731377,0.00019178,2]
[388503685,1759221340900,500.0,0.00019178,2]
[388503686,1759221350399,480.0,0.00019178,2]
[388503687,1759221392933,480.0,0.00019178,2]
[388503688,1759221398178,480.0,0.00019178,2]
[388503689,1759221402170,480.0,0.00019178,2]
[388503690,1759221412014,480.0,0.00019178,2]
[388503691,1759221414299,238.30428708,0.00019178,2]
[388503692,1759221418198,480.0,0.00019178,2]
[388503693,1759221430141,525.67,0.00019178,2]
[388503694,1759221430544,262.890705,0.00018341,2]
[388503695,1759221436546,332.07501041,0.00019178,2]
[388503696,1759221441669,268.21296073,0.00019178,2]
[388503697,1759221443417,313.0233671,0.00019178,2]
[388503698,1759221448637,992.80808798,0.00019113,2]
[388503699,1759221452796,480.0,0.00019178,2]
[388503700,1759221454654,487.17628758,0.00019178,2]
[388503701,1759221456557,500.0,0.00019178,2]
[388503702,1759221460573,480.0,0.00019178,2]
[388503703,1759221464264,480.0,0.00019178,2]
[388503704,1759221474305,500.0,0.00019178,2]
[388503705,1759221474751,-300.0,0.00019211,2]
[388503706,1759221474779,-1200.0,0.00019211,2]
[388503707,1759221476275,904.41,0.00019178,2]
[388503708,1759221482377,300.0,0.00019211,2]
[388503709,1759221483914,480.0,0.00019178,2]
[388503710,1759221491000,500.0,0.00019178,2]
[388503711,1759221496636,2466.71,0.00019178,2]
[388503712,1759221518728,667.12,0.00019178,2]
[388503713,1759221535044,500.0,0.00019178,2]
[388503714,1759221536069,480.0,0.00019178,2]
[388503715,1759221537184,179.49000001,0.00019178,2]
[388503716,1759221537991,480.0,0.00019178,2]
[388503717,1759221541715,42.27999999,0.00019178,2]
[388503718,1759221541738,437.72000001,0.00019178,2]
[388503719,1759221542729,300.0,0.00019211,2]
[388503720,1759221571064,500.0,0.00019178,2]
[388503721,1759221574527,2797.24,0.00019178,2]
[388503722,1759221588552,500.0,0.00019178,2]
[388503723,1759221591227,500.0,0.00019178,2]
[388503724,1759221594072,480.0,0.00019178,2]
[388503725,1759221595769,500.0,0.00019178,2]
[388503726,1759221601303,300.0,0.00019211,2]
[388503727,1759221602283,300.0,0.00019211,2]
[388503728,1759221602309,300.0,0.00019211,2]
[388503729,1759221602720,300.0,0.00019211,2]
[388503730,1759221606266,1200.0,0.00019211,2]
[388503731,1759221609903,480.0,0.00019178,2]
[388503732,1759221617050,480.0,0.00019178,2]
[388503733,1759221622061,-177.3254538,0.00019212,2]
[388503734,1759221622875,500.0,0.00019178,2]
[388503735,1759221624774,-249.23497946,0.00019212,2]
[388503736,1759221627708,-360.37186939,0.00019212,2]
[388503737,1759221629543,125.04999999,0.00019178,2]
[388503738,1759221629568,374.95000001,0.00019178,2]
[388503739,1759221631068,-323.92865448,0.00019212,2]
[388503740,1759221631585,480.0,0.00019178,2]
[388503741,1759221633796,-213.85764713,0.00019212,2]
[388503742,1759221635117,480.0,0.00019178,2]
[388503743,1759221635152,500.0,0.00019211,2]
[388503744,1759221635187,298.38362488,0.00019211,2]
[388503745,1759221635216,500.0,0.00019211,2]
[388503746,1759221635272,201.40935166,0.00019211,2]
[388503747,1759221635316,500.0,0.00019211,2]
[388503748,1759221635505,490.61414763,0.00019211,2]
[388503749,1759221635599,500.0,0.00019211,2]
[388503750,1759221635646,-199.73350451,0.00019212,2]
[388503751,1759221635676,500.0,0.00019211,2]
[388503752,1759221635824,500.0,0.00019211,2]
[388503753,1759221636770,507.78661823,0.00019211,2]
[388503754,1759221636801,500.0,0.00019211,2]
[388503755,1759221636828,314.90406315,0.00019211,2]
[388503756,1759221636855,544.12898832,0.00019211,2]
[388503757,1759221636883,500.0,0.00019211,2]
[388503758,1759221636918,234.0384444,0.00019211,2]
[388503759,1759221636945,500.0,0.00019211,2]
[388503760,1759221636974,500.0,0.00019211,2]
[388503761,1759221637008,500.0,0.00019211,2]
[388503762,1759221637035,500.0,0.00019211,2]
[388503763,1759221637066,73.79476172,0.00019211,2]
[388503764,1759221637089,426.20523828,0.00019211,2]
[388503765,1759221637115,500.0,0.00019211,2]
[388503766,1759221637143,500.0,0.00019211,2]
[388503767,1759221637288,500.0,0.00019211,2]
[388503768,1759221637361,500.0,0.00019211,2]
[388503769,1759221637392,500.0,0.00019211,2]
[388503770,1759221637421,445.23449586,0.00019211,2]
[388503771,1759221637472,500.0,0.00019211,2]
[388503772,1759221637503,500.0,0.00019211,2]
[388503773,1759221637535,500.0,0.00019211,2]
[388503774,1759221637568,500.0,0.00019211,2]
[388503775,1759221637597,500.0,0.00019211,2]
[388503776,1759221637625,500.0,0.00019211,2]
[388503777,1759221637654,500.0,0.00019211,2]
[388503778,1759221637682,500.0,0.00019211,2]
[388503779,1759221637714,500.0,0.00019211,2]
[388503780,1759221638633,-249.23579346,0.00019212,2]
[388503781,1759221640958,-300.0,0.00019212,2]
[388503782,1759221643518,-852.5428668,0.00019212,2]
[388503783,1759221645229,500.0,0.00019178,2]
[388503784,1759221645295,-232.61845327,0.00019212,2]
[388503785,1759221647572,-408.13593994,0.00019212,2]
[388503786,1759221649119,588.2,0.00019178,2]
[388503787,1759221649426,500.0,0.00019211,2]
[388503788,1759221649734,-482.51660922,0.00019212,2]
[388503789,1759221653204,-159.81703447,0.00019212,2]
[388503790,1759221655516,-205.47998789,0.00019212,2]
[388503791,1759221657989,500.0,0.00019178,2]
[388503792,1759221658147,-500.0,0.00019212,2]
[388503793,1759221660701,-298.82437149,0.00019212,2]
[388503794,1759221662368,300.0,0.00019211,2]
[388503795,1759221662765,159.81703447,0.00019211,2]
[388503796,1759221664559,-289.27485921,0.00019212,2]
[388503797,1759221664912,205.47998789,0.00019211,2]
[388503798,1759221667301,-227.46344808,0.00019212,2]
[388503799,1759221667812,522.430216,0.00019211,2]
[388503800,1759221670681,-267.14746093,0.00019212,2]
[388503801,1759221670758,500.0,0.00019211,2]
[388503802,1759221671650,500.0,0.00019178,2]
[388503803,1759221672217,-325.16045664,0.00019212,2]
[388503804,1759221674118,500.0,0.00019211,2]
[388503805,1759221674169,283.88576822,0.00019211,2]
[388503806,1759221674595,-840.21485054,0.00019212,2]
[388503807,1759221677253,-177.569784,0.00019212,2]
[388503808,1759221677883,481.80174541,0.00019178,2]
[388503809,1759221678761,500.0,0.00019178,2]
[388503810,1759221679513,-267.75104591,0.00019212,2]
[388503811,1759221681589,-160.0,0.00019212,2]
[388503812,1759221684082,-500.0,0.00019212,2]
[388503813,1759221687142,177.569784,0.00019211,2]
[388503814,1759221687885,-188.0,0.00019212,2]
[388503815,1759221689572,-466.60538045,0.00019212,2]
[388503816,1759221690548,160.0,0.00019211,2]
[388503817,1759221691670,-168.0115732,0.00019212,2]
[388503818,1759221694860,-281.78346455,0.00019212,2]
[388503819,1759221695180,500.0,0.00019211,2]
[388503820,1759221700572,-300.0,0.00019212,2]
[388503821,1759221700732,500.0,0.00019211,2]
[388503822,1759221701725,168.0115732,0.00019211,2]
[388503823,1759221702344,-227.16852329,0.00019212,2]
[388503824,1759221702376,500.0,0.00019178,2]
[388503825,1759221704251,480.0,0.00019178,2]
[388503826,1759221704490,-199.3948353,0.00019212,2]
[388503827,1759221704857,393.78346455,0.00019211,2]
[388503828,1759221707850,-208.52896771,0.00019212,2]
[388503829,1759221709334,500.0,0.00019178,2]
[388503830,1759221709825,188.0,0.00019211,2]
[388503831,1759221711753,294.52001211,0.00019211,2]
[388503832,1759221712592,-238.57033918,0.00019212,2]
[388503833,1759221714196,54372.0,0.00033129,20]
[388503834,1759221715543,-281.96898877,0.00019212,2]
[388503835,1759221717876,-277.79248738,0.00019212,2]
[388503836,1759221720471,-199.53354559,0.00019212,2]
[388503837,1759221722279,500.0,0.00019211,2]
[388503838,1759221722431,300.0,0.00019211,2]
[388503839,1759221722519,500.0,0.00019178,2]
[388503840,1759221722875,340.18296553,0.00019211,2]
[388503841,1759221723772,-162.08015912,0.00019212,2]
[388503842,1759221725111,44.52744862,0.00019178,2]
[388503843,1759221725134,927.85255138,0.00019178,2]
[388503844,1759221727989,-205.57359027,0.00019212,2]
[388503845,1759221730754,868.707077,0.00019113,2]
[388503846,1759221735855,678.19,0.00019178,2]
[388503847,1759221739681,-157.19980469,0.00019212,2]
[388503848,1759221741478,500.0,0.00019178,2]
[388503849,1759221743102,1200.0,0.00019211,2]
[388503850,1759221743834,-397.88456267,0.00019212,2]
[388503851,1759221746540,-230.89710676,0.00019212,2]
[388503852,1759221746737,500.0,0.00019178,2]
[388503853,1759221749272,-160.23361501,0.00019212,2]
[388503854,1759221751599,-152.8879441,0.00019212,2]
[388503855,1759221754881,-211.659416,0.00019212,2]
[388503856,1759221755662,559.04,0.00019178,2]
[388503857,1759221757328,482.51660922,0.00019211,2]
[388503858,1759221757445,500.0,0.00019211,2]
[388503859,1759221758870,-286.23654563,0.00019212,2]
[388503860,1759221761889,-225.22986734,0.00019212,2]
[388503861,1759221765612,-311.60271633,0.00019212,2]
[388503862,1759221767360,-188.39728367,0.00019212,2]
[388503863,1759221767381,-111.60271633,0.00019212,2]
[388503864,1759221769508,-97.26582108,0.00019212,2]
[388503865,1759221769532,-80.01721531,0.00019212,2]
[388503866,1759221771630,-288.60595056,0.00019212,2]
[388503867,1759221772077,480.0,0.00019211,2]
[388503868,1759221773526,-131.37683413,0.00019212,2]
[388503869,1759221773552,-81.6736315,0.00019212,2]
[388503870,1759221776156,-241.77042191,0.00019212,2]
[388503871,1759221780260,667257.0,0.00033129,20]
[388503872,1759221780303,-119.98584993,0.00019212,2]
[388503873,1759221780324,-111.98906182,0.00019212,2]
[388503874,1759221781901,-341.54319708,0.00019212,2]
[388503875,1759221784294,-46.4677411,0.00019212,2]
[388503876,1759221784318,-115.84222975,0.00019212,2]
[388503877,1759221784523,411.53337311,0.00019178,2]
[388503878,1759221787337,-154.43112863,0.00019212,2]
[388503879,1759221789610,-229.72664162,0.00019212,2]
[388503880,1759221789632,-224.57486432,0.00019212,2]
[388503881,1759221792315,683.68,0.00019211,2]
[388503882,1759221792929,-75.42513568,0.00019212,2]
[388503883,1759221792951,-144.46164693,0.00019212,2]
[388503884,1759221794394,500.0,0.00019211,2]
[388503885,1759221796404,-242.87912392,0.00019212,2]
[388503886,1759221798031,-351.85199585,0.00019212,2]
[388503887,1759221801583,500.0,0.00019178,2]
[388503888,1759221802242,-223.55602795,0.00019212,2]
[388503889,1759221804096,-223.55602795,0.00019212,2]
[388503890,1759221806903,500.0,0.00019211,2]
[388503891,1759221807262,-245.48,0.00019212,2]
[388503892,1759221811924,-256.44397205,0.00019212,2]
[388503893,1759221814106,-246.23293198,0.00019212,2]
[388503894,1759221823026,481.77261665,0.00019211,2]
[388503895,1759221829001,226.71777264,0.00019178,2]
[388503896,1759221829024,273.28222736,0.00019178,2]
[388503897,1759221838328,482.62974144,0.00019211,2]
[388503898,1759221843668,300.0,0.00019211,2]
[388503899,1759221848269,500.0,0.00019178,2]
[388503900,1759221874623,500.0,0.00019211,2]
[388503901,1759221874726,500.0,0.00019211,2]
[388503902,1759221874781,210.40093234,0.00019211,2]
[388503903,1759221874871,500.0,0.00019211,2]
[388503904,1759221885818,500.0,0.00019211,2]
[388503905,1759221895810,1652.0,0.00019211,2]
[388503906,1759221900479,500.0,0.00019211,2]
[388503907,1759221901672,300.0,0.00019211,2]
[388503908,1759221902189,300.0,0.00019211,2]
[388503909,1759221902215,300.0,0.00019211,2]
[388503910,1759221902286,300.0,0.00019211,2]
[388503911,1759221911352,1200.0,0.00019211,2]
[388503912,1759221918932,360.35362091,0.00019178,2]
[388503913,1759221928740,500.0,0.00019178,2]
[388503918,1759221947750,500.0,0.00019211,2]
[388503925,1759221965101,-500.0,0.00019178,2]
[388503926,1759221965130,-500.0,0.00019178,2]
[388503927,1759221965162,-300.0,0.00019211,2]
[388503928,1759221965192,-500.0,0.00019211,2]
[388503929,1759221965221,-500.0,0.00019211,2]
[388503934,1759221974438,-6472.96510118,0.00019212,2]
[388503935,1759221980597,-10000.01,0.00019212,2]
[388503936,1759221980752,-10000.01,0.00019212,2]
[388503937,1759221980881,-10000.01,0.00019212,2]
[388503938,1759221981393,-10000.01,0.00019212,2]
[388503939,1759221981506,-10000.01,0.00019212,2]
[388503940,1759221981626,-10000.01,0.00019212,2]
[388503942,1759221981738,-10000.01,0.00019212,2]
[388503943,1759221981891,-3998.76741989,0.00019212,2]
[388503944,1759221981929,-2002.47516022,0.00019212,2]
[388503945,1759221985118,-500.0,0.00019178,2]
[388503946,1759221985146,-500.0,0.00019211,2]
[388503947,1759221985173,-496.95784268,0.00019212,2]
[388503948,1759221985233,-7006.09431464,0.00019213,2]
[388503949,1759221995120,-500.0,0.00019211,2]
[388503950,1759221995154,-9000.01,0.00019213,2]
[388503951,1759221995235,-10000.01,0.00019213,2]
[388503952,1759221995385,-10000.01,0.00019213,2]
[388503953,1759221995509,-10000.01,0.00019213,2]
[388503954,1759221995645,-3993.86568536,0.00019213,2]
[388503955,1759221996106,-290.22086844,0.00019213,2]
[388503956,1759222000215,483.07831198,0.00019211,2]
[388503957,1759222002319,500.0,0.00019211,2]
[388503958,1759222005253,-209.77913156,0.00019213,2]
[388503959,1759222005280,-500.0,0.00019213,2]
[388503960,1759222005304,-500.0,0.00019213,2]
[388503961,1759222005329,-500.0,0.00019213,2]
[388503962,1759222005358,-500.0,0.00019213,2]
[388503963,1759222005383,-790.89,0.00019213,2]
[388503964,1759222005410,-500.0,0.00019213,2]
[388503965,1759222005435,-500.0,0.00019213,2]
[388503966,1759222005463,-711.41,0.00019213,2]
[388503967,1759222005681,-725.57,0.00019213,2]
[388503968,1759222005707,-500.0,0.00019213,2]
[388503969,1759222005733,-500.0,0.00019213,2]
[388503970,1759222005758,-500.0,0.00019213,2]
[388503971,1759222005784,-500.0,0.00019213,2]
[388503972,1759222005810,-500.0,0.00019213,2]
[388503973,1759222005838,-500.0,0.00019213,2]
[388503974,1759222005865,-500.0,0.00019213,2]
[388503975,1759222005891,-567.77,0.00019213,2]
[388503976,1759222005952,-500.0,0.00019213,2]
[388503977,1759222005979,-500.0,0.00019213,2]
[388503978,1759222006007,-500.0,0.00019213,2]
[388503979,1759222006191,-500.0,0.00019213,2]
[388503980,1759222006219,-500.0,0.00019213,2]
[388503981,1759222006245,-500.0,0.00019213,2]
[388503982,1759222006271,-500.0,0.00019213,2]
[388503983,1759222006297,-500.0,0.00019213,2]
[388503984,1759222006324,-500.0,0.00019213,2]
[388503985,1759222006349,-500.0,0.00019213,2]
[388503986,1759222006568,-500.0,0.00019213,2]
[388503987,1759222006596,-500.0,0.00019213,2]
[388503988,1759222006623,-3484.43,0.00019213,2]
[388503989,1759222006742,-1031.15,0.00019213,2]
[388503990,1759222006769,-500.0,0.00019213,2]
[388503991,1759222006795,-573.77978354,0.00019213,2]
[388503992,1759222006820,-500.0,0.00019213,2]
[388503993,1759222006846,-287.80588397,0.00019213,2]
[388503994,1759222006872,-500.0,0.00019213,2]
[388503995,1759222006899,-500.0,0.00019213,2]
[388503996,1759222006923,-500.0,0.00019213,2]
[388503997,1759222006949,-500.0,0.00019213,2]
[388503998,1759222006983,-500.0,0.00019213,2]
[388503999,1759222007007,-500.0,0.00019213,2]
[388504000,1759222007033,-596.28225849,0.00019213,2]
[388504001,1759222007057,-500.0,0.00019213,2]
[388504002,1759222008222,500.0,0.00019211,2]
[388504003,1759222008907,500.0,0.00019211,2]
[388504004,1759222012420,500.0,0.00019211,2]
[388504005,1759222013013,2680.68,0.00019211,2]
[388504006,1759222019544,500.0,0.00019178,2]
[388504007,1759222021164,500.0,0.00019211,2]
[388504008,1759222022411,500.0,0.00019178,2]
[388504009,1759222025293,126.76548302,0.00019213,2]
[388504010,1759222025313,10000.01,0.00019213,2]
[388504011,1759222025335,4240.65042536,0.00019213,2]
[388504012,1759222025745,500.0,0.00019211,2]
[388504013,1759222032397,500.0,0.00019178,2]
[388504014,1759222038909,500.0,0.00019178,2]
[388504015,1759222044135,346.04641236,0.00019211,2]
[388504016,1759222044163,500.0,0.00019211,2]
[388504017,1759222044189,528.86465159,0.00019211,2]
[388504018,1759222044215,321.65931154,0.00019211,2]
[388504019,1759222044261,266.04918776,0.00019211,2]
[388504020,1759222044666,500.0,0.00019211,2]
[388504021,1759222044695,497.61953936,0.00019211,2]
[388504022,1759222045015,440.42818401,0.00019211,2]
[388504023,1759222051599,500.0,0.00019178,2]
[388504024,1759222057219,221.81188306,0.00019211,2]
[388504025,1759222059105,136.88040496,0.00019212,2]
[388504026,1759222059130,363.11959504,0.00019212,2]
[388504027,1759222059173,500.0,0.00019212,2]
[388504028,1759222059216,160.58161065,0.00019212,2]
[388504029,1759222067349,500.0,0.00019178,2]
[388504030,1759222068514,217.89185822,0.00019112,2]
[388504031,1759222071944,681.77,0.00019178,2]
[388504032,1759222073084,500.0,0.00019178,2]
[388504033,1759222075783,500.0,0.00019213,2]
[388504034,1759222077862,500.0,0.00019178,2]
[388504035,1759222096334,500.0,0.00019178,2]
[388504036,1759222099507,500.0,0.00019211,2]
[388504037,1759222101106,500.0,0.00019211,2]
[388504038,1759222102690,576.32,0.00019213,2]
[388504039,1759222107854,500.0,0.00019211,2]
[388504040,1759222108592,866.73,0.00019211,2]
[388504041,1759222120004,544.11,0.00019178,2]
[388504042,1759222121434,500.0,0.00019178,2]
[388504043,1759222129371,500.0,0.00019178,2]
[388504044,1759222131567,500.0,0.00019178,2]
[388504045,1759222146158,500.0,0.00019212,2]
[388504046,1759222147124,89.48693609,0.00019211,2]
[388504047,1759222147144,410.51306391,0.00019211,2]
[388504048,1759222164675,500.0,0.00019213,2]
[388504049,1759222167693,757.94,0.00019178,2]
[388504050,1759222177704,500.0,0.00019211,2]
[388504051,1759222181300,639.32,0.00019211,2]
[388504052,1759222188168,500.0,0.00019211,2]
[388504053,1759222193766,500.0,0.00019178,2]
[388504054,1759222196660,455.47348688,0.00019211,2]
[388504055,1759222206532,695.34,0.00019178,2]
[388504056,1759222224767,500.0,0.00019178,2]
[388504057,1759222230171,500.0,0.00019211,2]
[388504058,1759222230541,500.0,0.00019178,2]
[388504170,1759222232888,500.0,0.00019211,2]
[388504176,1759222232946,500.0,0.00019178,2]
[388504180,1759222232981,500.0,0.00019213,2]
[388504185,1759222236775,500.0,0.00019211,2]
[388504419,1759222240466,-168.0,0.00019288,2]
[388504420,1759222240475,-2301.4397866,0.00019314,2]
[388504422,1759222240485,-179.743,0.00019413,2]
[388504424,1759222240494,-573.67509302,0.00019431,2]
[388504677,1759222243055,-32.58380858,0.00019431,2]
[388504679,1759222243065,-597.38580781,0.0001945,2]
[388504681,1759222243077,-268.48001,0.0001945,2]
[388504685,1759222243109,-334.13418219,0.0001945,2]
[388504687,1759222243119,-300.0,0.0001945,2]
[388504689,1759222243129,-1200.0,0.0001945,2]
[388504691,1759222243138,-2363.93,0.00019451,2]
[388504693,1759222243147,-500.0,0.00019451,2]
[388504695,1759222243157,-577.64275525,0.00019451,2]
[388504697,1759222243167,-500.0,0.00019451,2]
[388504699,1759222243177,-500.0,0.00019451,2]
[388504701,1759222243187,-500.0,0.00019451,2]
[388504703,1759222243196,-500.0,0.00019451,2]
[388504704,1759222243206,-500.0,0.00019451,2]
[388504707,1759222243216,-500.0,0.00019451,2]
[388504708,1759222243227,-500.0,0.00019451,2]
[388504710,1759222243237,-500.0,0.00019451,2]
[388504712,1759222243247,-500.0,0.00019451,2]
[388504714,1759222243257,-500.0,0.00019451,2]
[388504716,1759222243268,-500.0,0.00019451,2]
[388504719,1759222243278,-242.78192145,0.00019451,2]
[388504721,1759222243288,-500.0,0.00019451,2]
[388504722,1759222243297,-500.0,0.00019451,2]
[388504725,1759222243308,-500.0,0.00019451,2]
[388504727,1759222243322,-500.0,0.00019451,2]
[388504729,1759222243332,-392.06924962,0.00019451,2]
[388504731,1759222243341,-500.0,0.00019452,2]
[388504733,1759222243351,-500.0,0.00019452,2]
[388504735,1759222243361,-500.0,0.00019452,2]
[388504737,1759222243370,-500.0,0.00019452,2]
[388504739,1759222243380,-500.0,0.00019452,2]
[388504741,1759222243390,-500.0,0.00019452,2]
[388504742,1759222243400,-432.20268894,0.00019452,2]
[388504745,1759222243416,-67.79731106,0.00019452,2]
[388504747,1759222243425,-557.66445431,0.00019452,2]
[388504749,1759222243434,-500.0,0.00019452,2]
[388504751,1759222243443,-383.71270482,0.00019452,2]
[388504990,1759222245851,-588.66729518,0.00019452,2]
[388504992,1759222245862,-678.19,0.00019452,2]
[388504994,1759222245871,-500.0,0.00019452,2]
[388504996,1759222245882,-559.04,0.00019452,2]
[388504998,1759222245893,-500.0,0.00019452,2]
[388505000,1759222245904,-500.0,0.00019452,2]
[388505002,1759222245913,-500.0,0.00019452,2]
[388505004,1759222245923,-500.0,0.00019452,2]
[388505006,1759222245933,-500.0,0.00019452,2]
[388505008,1759222245943,-500.0,0.00019452,2]
[388505010,1759222245953,-500.0,0.00019452,2]
[388505012,1759222245964,-500.0,0.00019452,2]
[388505014,1759222245975,-393.06179734,0.00019452,2]
[388505040,1759222246211,500.0,0.00019178,2]
[388505202,1759222248457,1041.42344921,0.00019211,2]
[388505205,1759222248485,1224.00655079,0.00019211,2]
[388505425,1759222250974,2568.99,0.00019211,2]
[388505470,1759222251374,500.0,0.00019213,2]
[388505532,1759222251940,500.0,0.00019211,2]
[388505567,1759222252247,500.0,0.00019212,2]
[388505615,1759222252675,500.0,0.00019211,2]
[388505888,1759222255462,500.0,0.00019178,2]
[388506444,1759222261298,500.0,0.00019178,2]
[388506661,1759222264625,500.0,0.00019211,2]
[388507005,1759222272276,480.0,0.00019178,2]
[388507006,1759222274197,500.0,0.00019178,2]
[388507007,1759222277242,500.0,0.00019211,2]
[388507008,1759222284052,500.0,0.00019178,2]
[388507009,1759222286623,500.0,0.00019178,2]
[388507010,1759222287531,227.01344921,0.00019211,2]
[388507011,1759222287554,272.98655079,0.00019211,2]
[388507012,1759222288711,500.0,0.00019212,2]
[388507013,1759222291285,500.0,0.00019213,2]
[388507014,1759222292427,500.0,0.00019211,2]
[388507015,1759222292638,500.0,0.00019178,2]
[388507016,1759222297457,502.83701517,0.00013699,2]
[388507017,1759222298495,4327.71,0.00019178,2]
[388507018,1759222301398,477.74931571,0.00019178,2]
[388507019,1759222305613,-454.6941762,0.00019431,2]
[388507020,1759222305642,-500.0,0.00019451,2]
[388507021,1759222305670,-500.0,0.00019451,2]
[388507022,1759222305699,-500.0,0.00019451,2]
[388507023,1759222305727,-500.0,0.00019451,2]
[388507024,1759222305753,-500.0,0.00019451,2]
[388507025,1759222305781,-500.0,0.00019451,2]
[388507026,1759222305812,-500.0,0.00019451,2]
[388507027,1759222305839,-500.0,0.00019451,2]
[388507028,1759222305865,-500.0,0.00019451,2]
[388507029,1759222306135,-500.0,0.00019451,2]
[388507030,1759222306164,-570.94952494,0.00019451,2]
[388507031,1759222306193,-500.0,0.00019451,2]
[388507032,1759222306220,-500.0,0.00019451,2]
[388507033,1759222306249,-500.0,0.00019451,2]